{"text_format":"1","workbook":"xlsx","n_sheets":1,"sheets":["Sheet1"],"not_rendered":{"charts":0,"images":0,"macros":1,"external_links":0,"defined_names":19,"comments":0,"pivot_tables":0},"unopened":[],"bounds":{"document_bytes":16777216,"sheet_cells":100000,"rows_first":2000,"rows_last":500,"rows_between":2000,"halvings":0,"cell_chars":16384,"cell_head_chars":4096},"cells_cut":0,"cells_raw":0,"read":"whole","date_system":"1900"}

{"sheet":"Sheet1","index":0,"n_rows":19,"n_cols":11,"rows_kept":19,"cut":false,"hidden":false,"merged":[]}
[]
[]
[]
[]
[null,null,null,null,null,null,null,"=B*SAM"," =  D/(A-C)","=(A-C)/A","=D/A"]
[]
[null,null,null,null,"A","B","C","D"]
["S.no ","Operator Name","Operation ","SAM","Available minutes","Production (pieces)","Total Off std time (mins)","Std mins earned","Performance","Utilization ","Efficiency "]
[1,"ABC","Bottom hem",0.5,480,800,40,{"$f":"Table1[[#This Row],[Production (pieces)]]*Table1[[#This Row],[SAM]]","v":400},{"$f":"Table1[[#This Row],[Std mins earned]]/(Table1[[#This Row],[Available minutes]]-Table1[[#This Row],[Total Off std time (mins)]])","v":0.90909090909090906},{"$f":"(Table1[[#This Row],[Available minutes]]-Table1[[#This Row],[Total Off std time (mins)]])/Table1[[#This Row],[Available minutes]]","v":0.91666666666666663},{"$f":"Table1[[#This Row],[Std mins earned]]/Table1[[#This Row],[Available minutes]]","v":0.83333333333333337}]
[2,"ASD"," Edge trim ",0.3,540,1500,80,{"$f":"Table1[[#This Row],[Production (pieces)]]*Table1[[#This Row],[SAM]]","v":450},{"$f":"Table1[[#This Row],[Std mins earned]]/(Table1[[#This Row],[Available minutes]]-Table1[[#This Row],[Total Off std time (mins)]])","v":0.97826086956521741},{"$f":"(Table1[[#This Row],[Available minutes]]-Table1[[#This Row],[Total Off std time (mins)]])/Table1[[#This Row],[Available minutes]]","v":0.85185185185185186},{"$f":"Table1[[#This Row],[Std mins earned]]/Table1[[#This Row],[Available minutes]]","v":0.83333333333333337}]
[null,null,null,null,null,null,null,{"$f":"Table1[[#This Row],[Production (pieces)]]*Table1[[#This Row],[SAM]]","v":0},{"$f":"Table1[[#This Row],[Std mins earned]]/(Table1[[#This Row],[Available minutes]]-Table1[[#This Row],[Total Off std time (mins)]])","v":{"$error":"#DIV/0!"}},{"$f":"(Table1[[#This Row],[Available minutes]]-Table1[[#This Row],[Total Off std time (mins)]])/Table1[[#This Row],[Available minutes]]","v":{"$error":"#DIV/0!"}},{"$f":"Table1[[#This Row],[Std mins earned]]/Table1[[#This Row],[Available minutes]]","v":{"$error":"#DIV/0!"}}]
[null,null,null,null,null,null,null,{"$f":"Table1[[#This Row],[Production (pieces)]]*Table1[[#This Row],[SAM]]","v":0},{"$f":"Table1[[#This Row],[Std mins earned]]/(Table1[[#This Row],[Available minutes]]-Table1[[#This Row],[Total Off std time (mins)]])","v":{"$error":"#DIV/0!"}},{"$f":"(Table1[[#This Row],[Available minutes]]-Table1[[#This Row],[Total Off std time (mins)]])/Table1[[#This Row],[Available minutes]]","v":{"$error":"#DIV/0!"}},{"$f":"Table1[[#This Row],[Std mins earned]]/Table1[[#This Row],[Available minutes]]","v":{"$error":"#DIV/0!"}}]
[null,null,null,null,null,null,null,{"$f":"Table1[[#This Row],[Production (pieces)]]*Table1[[#This Row],[SAM]]","v":0},{"$f":"Table1[[#This Row],[Std mins earned]]/(Table1[[#This Row],[Available minutes]]-Table1[[#This Row],[Total Off std time (mins)]])","v":{"$error":"#DIV/0!"}},{"$f":"(Table1[[#This Row],[Available minutes]]-Table1[[#This Row],[Total Off std time (mins)]])/Table1[[#This Row],[Available minutes]]","v":{"$error":"#DIV/0!"}},{"$f":"Table1[[#This Row],[Std mins earned]]/Table1[[#This Row],[Available minutes]]","v":{"$error":"#DIV/0!"}}]
[null,null,null,null,null,null,null,{"$f":"Table1[[#This Row],[Production (pieces)]]*Table1[[#This Row],[SAM]]","v":0},{"$f":"Table1[[#This Row],[Std mins earned]]/(Table1[[#This Row],[Available minutes]]-Table1[[#This Row],[Total Off std time (mins)]])","v":{"$error":"#DIV/0!"}},{"$f":"(Table1[[#This Row],[Available minutes]]-Table1[[#This Row],[Total Off std time (mins)]])/Table1[[#This Row],[Available minutes]]","v":{"$error":"#DIV/0!"}},{"$f":"Table1[[#This Row],[Std mins earned]]/Table1[[#This Row],[Available minutes]]","v":{"$error":"#DIV/0!"}}]
[null,null,null,null,null,null,null,{"$f":"Table1[[#This Row],[Production (pieces)]]*Table1[[#This Row],[SAM]]","v":0},{"$f":"Table1[[#This Row],[Std mins earned]]/(Table1[[#This Row],[Available minutes]]-Table1[[#This Row],[Total Off std time (mins)]])","v":{"$error":"#DIV/0!"}},{"$f":"(Table1[[#This Row],[Available minutes]]-Table1[[#This Row],[Total Off std time (mins)]])/Table1[[#This Row],[Available minutes]]","v":{"$error":"#DIV/0!"}},{"$f":"Table1[[#This Row],[Std mins earned]]/Table1[[#This Row],[Available minutes]]","v":{"$error":"#DIV/0!"}}]
[null,null,null,null,null,null,null,{"$f":"Table1[[#This Row],[Production (pieces)]]*Table1[[#This Row],[SAM]]","v":0},{"$f":"Table1[[#This Row],[Std mins earned]]/(Table1[[#This Row],[Available minutes]]-Table1[[#This Row],[Total Off std time (mins)]])","v":{"$error":"#DIV/0!"}},{"$f":"(Table1[[#This Row],[Available minutes]]-Table1[[#This Row],[Total Off std time (mins)]])/Table1[[#This Row],[Available minutes]]","v":{"$error":"#DIV/0!"}},{"$f":"Table1[[#This Row],[Std mins earned]]/Table1[[#This Row],[Available minutes]]","v":{"$error":"#DIV/0!"}}]
[null,null,null,null,null,null,null,{"$f":"Table1[[#This Row],[Production (pieces)]]*Table1[[#This Row],[SAM]]","v":0},{"$f":"Table1[[#This Row],[Std mins earned]]/(Table1[[#This Row],[Available minutes]]-Table1[[#This Row],[Total Off std time (mins)]])","v":{"$error":"#DIV/0!"}},{"$f":"(Table1[[#This Row],[Available minutes]]-Table1[[#This Row],[Total Off std time (mins)]])/Table1[[#This Row],[Available minutes]]","v":{"$error":"#DIV/0!"}},{"$f":"Table1[[#This Row],[Std mins earned]]/Table1[[#This Row],[Available minutes]]","v":{"$error":"#DIV/0!"}}]
[null,null,null,null,null,null,null,{"$f":"Table1[[#This Row],[Production (pieces)]]*Table1[[#This Row],[SAM]]","v":0},{"$f":"Table1[[#This Row],[Std mins earned]]/(Table1[[#This Row],[Available minutes]]-Table1[[#This Row],[Total Off std time (mins)]])","v":{"$error":"#DIV/0!"}},{"$f":"(Table1[[#This Row],[Available minutes]]-Table1[[#This Row],[Total Off std time (mins)]])/Table1[[#This Row],[Available minutes]]","v":{"$error":"#DIV/0!"}},{"$f":"Table1[[#This Row],[Std mins earned]]/Table1[[#This Row],[Available minutes]]","v":{"$error":"#DIV/0!"}}]
[null,null,null,null,null,null,null,{"$f":"Table1[[#This Row],[Production (pieces)]]*Table1[[#This Row],[SAM]]","v":0},{"$f":"Table1[[#This Row],[Std mins earned]]/(Table1[[#This Row],[Available minutes]]-Table1[[#This Row],[Total Off std time (mins)]])","v":{"$error":"#DIV/0!"}},{"$f":"(Table1[[#This Row],[Available minutes]]-Table1[[#This Row],[Total Off std time (mins)]])/Table1[[#This Row],[Available minutes]]","v":{"$error":"#DIV/0!"}},{"$f":"Table1[[#This Row],[Std mins earned]]/Table1[[#This Row],[Available minutes]]","v":{"$error":"#DIV/0!"}}]